bitfinex/quotes_ETHUSD_20250905
["timestamp","ask_amount","ask_price","bid_price","bid_amount"]
[1757063443460,2.73667116,4407.1,4406.6,2.26930411]
[1757063443768,0.4676,4407.1,4406.7,2.26926424]
[1757063443934,0.4676,4407.1,4406.6,2.26929808]
[1757063444259,0.4676,4407.1,4406.7,2.26926703]
[1757063444634,6.11903136,4407.2,4406.7,2.26926703]
[1757063444961,2.73667002,4407.1,4406.5,2.38212359]
[1757063445137,2.73667002,4407.1,4406.6,2.2693139]
[1757063445456,0.4676,4407.0,4406.6,2.2693139]
[1757063445630,2.26907475,4407.1,4406.5,0.1128]
[1757063445834,2.73667475,4407.1,4406.5,2.38216368]
[1757063446033,2.73667475,4407.1,4406.6,2.26932079]
[1757063446360,0.4676,4407.0,4406.6,2.26932079]
[1757063446566,0.4676,4407.0,4406.5,2.38214948]
[1757063446934,0.4676,4407.0,4406.6,2.26930978]
[1757063447860,3.85,4407.2,4406.7,2.26926807]
[1757063448036,6.11904794,4407.2,4406.6,2.26929877]
[1757063448236,2.26906987,4407.1,4406.6,2.26929877]
[1757063448747,0.4676,4407.0,4406.6,2.26929877]
[1757063449267,0.4676,4407.0,4406.7,2.26926852]
[1757063449470,0.4676,4407.0,4406.6,2.26929744]
[1757063449635,0.1128,4407.3,4406.9,2.57126567]
[1757063449835,3.844,4407.2,4406.9,2.57126567]
[1757063450268,0.1128,4407.3,4406.9,2.57126567]
[1757063450467,3.844,4407.1,4406.9,2.57126567]
[1757063451168,2.26882,4407.6,4406.9,2.57126567]
[1757063451169,2.29370861,4407.8,4407.1,2.26905781]
[1757063451336,2.26884088,4407.6,4407.1,2.26905781]
[1757063451537,0.001,4407.1,4407.0,2.2690992]
[1757063452268,0.001,4407.1,4407.0,2.5711992]
[1757063455958,0.001,4407.1,4407.0,4.37859959]
[1757063457576,0.001,4407.1,4407.0,5.17059959]
[1757063458692,0.001,4407.1,4407.0,9.01259959]
[1757063461193,0.001,4407.1,4407.0,9.12539959]
[1757063462386,0.001,4407.1,4407.0,4.85179959]
[1757063462696,0.001,4407.1,4407.0,9.12339959]
[1757063465398,0.001,4407.1,4407.0,8.69179959]
[1757063465701,0.001,4407.1,4407.0,4.38759959]
[1757063465900,0.001,4407.1,4407.0,8.22559959]
[1757063466065,0.001,4407.1,4407.0,9.12139959]
[1757063467499,0.001,4407.1,4407.0,13.43500968]
[1757063468197,0.001,4407.1,4407.0,13.00340968]
[1757063468603,0.001,4407.1,4407.0,4.38759959]
[1757063468806,0.001,4407.1,4407.0,12.53620968]
[1757063469596,0.7367,4407.1,4407.0,3.838]
[1757063469763,1.1925,4407.1,4407.0,3.838]
[1757063471186,1.1925,4407.1,4407.0,6.10711731]
[1757063473206,1.1917,4407.1,4407.0,6.10711731]
[1757063473706,1.1917,4407.1,4407.0,0.004]
[1757063474577,3.46076582,4407.1,4407.0,0.004]
[1757063475706,1.1917,4407.1,4407.0,0.004]
[1757063475905,3.46076582,4407.1,4407.0,0.004]
[1757063476085,1.1917,4407.1,4407.0,0.004]
[1757063479609,1.1917,4407.1,4407.0,0.1168]
[1757063481500,0.2947,4407.1,4407.0,0.1168]
[1757063481699,0.0002,4407.1,4407.0,0.1168]
[1757063482102,0.2947,4407.1,4407.0,0.1168]
[1757063482417,1.1917,4407.1,4407.0,3.9468]
[1757063482617,0.7359,4407.1,4407.0,3.9468]
[1757063483886,1.1917,4407.1,4407.0,3.9468]
[1757063484615,0.7359,4407.1,4407.0,0.1168]
[1757063484918,0.7359,4407.1,4407.0,3.9468]
[1757063485985,0.0002,4407.1,4407.0,4.2429]
[1757063486190,0.0002,4407.1,4407.0,6.51201731]
[1757063486724,0.0002,4407.1,4407.0,8.63354538]
[1757063487023,0.0002,4407.1,4407.0,9.08074538]
[1757063487990,0.0002,4407.1,4407.0,8.63354538]
[1757063489425,0.0002,4407.1,4407.0,12.94715547]
[1757063492291,0.0002,4407.1,4407.0,12.49575547]
[1757063492713,0.0002,4407.1,4407.0,13.28155547]
[1757063493023,0.0002,4407.1,4407.0,12.83435547]
[1757063493325,0.0002,4407.1,4407.0,12.38295547]
[1757063494927,0.0002,4407.1,4407.0,8.55295547]
[1757063495132,0.0002,4407.1,4407.0,8.06834538]
[1757063495294,0.2947,4407.1,4407.0,6.89311731]
[1757063495494,1.1917,4407.1,4407.0,0.004]
[1757063495706,3.8426668,4407.1,4407.0,0.004]
[1757063495902,3.46076582,4407.1,4407.0,0.004]
[1757063496189,1.1917,4407.1,4407.0,0.004]
[1757063496413,3.46076582,4407.1,4407.0,0.004]
[1757063501016,3.45996582,4407.1,4407.0,0.004]
[1757063502729,0.2939,4407.1,4407.0,0.004]
[1757063503030,0.7442,4407.1,4407.0,0.004]
[1757063503613,3.01326582,4407.1,4407.0,0.004]
[1757063503926,3.50616582,4407.1,4407.0,0.004]
[1757063509536,11.76201473,4407.1,4407.0,0.004]
[1757063509736,12.14391571,4407.1,4407.0,0.004]
[1757063509923,12.26071571,4407.1,4407.0,0.004]
[1757063511852,6.62296582,4407.1,4407.0,0.004]
[1757063514729,10.44596582,4407.1,4407.0,0.004]
[1757063516609,9.99666582,4407.1,4407.0,0.004]
[1757063516814,9.95306582,4407.1,4407.0,0.004]
[1757063517319,10.44596582,4407.1,4407.0,0.004]
[1757063528844,10.44516582,4407.1,4407.0,0.004]
[1757063530337,0.1178,4407.1,4407.0,0.3116]
[1757063530547,6.08406582,4407.1,4407.0,0.7784]
[1757063531142,6.08406582,4407.1,4407.0,0.3116]
[1757063532244,6.08406582,4407.1,4407.0,0.004]
[1757063532447,10.32966582,4407.1,4407.0,0.004]
[1757063532744,11.1823668,4407.1,4407.0,0.004]
[1757063535546,6.1227668,4407.1,4407.0,0.004]
[1757063535748,10.02576582,4407.1,4407.0,0.004]
[1757063536049,10.31486582,4407.1,4407.0,0.004]
[1757063537953,10.80246582,4407.1,4407.0,0.004]
[1757063545234,5.62660162,4407.0,4406.1,0.004]
[1757063545441,10.5253782,4406.2,4406.1,0.004]
[1757063545657,16.2994782,4406.2,4406.1,0.004]
[1757063545847,17.2559782,4406.2,4406.1,0.004]
[1757063547531,16.7683782,4406.2,4406.1,0.004]
[1757063549065,11.51252929,4406.2,4406.1,0.004]
[1757063549765,6.94152929,4406.2,4406.1,0.3116]
[1757063549963,10.75452929,4406.2,4406.1,0.3116]
[1757063550152,10.75452929,4406.2,4406.1,0.004]
[1757063550363,11.04362929,4406.2,4406.1,0.004]
[1757063550661,11.51252929,4406.2,4406.1,0.004]
[1757063551135,11.04362929,4406.2,4406.1,0.004]
[1757063552175,10.75452929,4406.2,4406.1,0.004]
[1757063552681,11.51252929,4406.2,4406.1,0.004]
[1757063552871,12.00012929,4406.2,4406.1,0.004]
[1757063553941,11.51252929,4406.2,4406.1,0.004]
[1757063554555,11.04362929,4406.2,4406.1,0.004]
[1757063555478,11.04362929,4406.2,4405.8,0.029]
[1757063555479,2.26963231,4406.0,4405.8,0.029]
[1757063555772,9.08268383,4405.9,4405.8,0.029]
[1757063556176,9.08268383,4405.9,4405.8,0.3366]
[1757063556732,9.08188383,4405.9,4405.8,0.3366]
[1757063560155,9.08188383,4405.9,4405.8,0.3366]
[1757063562745,9.08188383,4405.9,4405.8,0.2366]
[1757063563870,5.38253534,4405.8,4405.7,0.004]
[1757063564180,5.81823534,4405.8,4405.7,0.004]
[1757063564355,6.11973534,4405.8,4405.7,0.004]
[1757063564553,6.21071753,4405.8,4405.7,0.004]
[1757063566048,5.77501753,4405.8,4405.7,0.004]
[1757063566772,6.21071753,4405.8,4405.7,0.004]
[1757063566972,5.47351753,4405.8,4405.7,0.004]
[1757063567147,5.47351753,4405.8,4405.7,0.2907]
[1757063567659,2.47351753,4405.8,4405.7,0.98270725]
[1757063567972,0.1128,4405.8,4405.7,1.37030725]
[1757063568773,2.38253534,4405.8,4405.7,1.37030725]
[1757063568943,2.38253534,4405.8,4405.7,0.98270725]
[1757063569481,2.38253534,4405.8,4405.7,0.50300725]
[1757063569677,6.19553534,4405.8,4405.7,0.21630725]
[1757063569883,6.19653534,4405.8,4405.7,0.21630725]
[1757063571876,6.19653534,4405.8,4405.7,0.11630725]
[1757063572479,6.49803534,4405.8,4405.7,0.11630725]
[1757063572685,6.93373534,4405.8,4405.7,0.11630725]
[1757063573858,10.39113534,4405.8,4405.7,0.11630725]
[1757063574061,10.50744259,4405.8,4405.7,0.11630725]
[1757063575779,10.05004259,4405.8,4405.7,0.11630725]
[1757063576697,9.31284259,4405.8,4405.7,0.11630725]
[1757063576853,10.05004259,4405.8,4405.7,0.11630725]
[1757063580362,9.31284259,4405.8,4405.7,0.11630725]
[1757063581179,10.05004259,4405.8,4405.7,0.11630725]
[1757063582893,9.31284259,4405.8,4405.7,0.40300725]
[1757063583501,4.04310725,4405.8,4405.7,0.40300725]
[1757063583790,0.001,4405.8,4405.7,1.27030725]
[1757063584192,2.27073534,4405.8,4405.7,1.27030725]
[1757063584399,2.27073534,4405.8,4405.7,0.88270725]
[1757063584603,2.27073534,4405.8,4405.7,0.40300725]
[1757063585016,2.26993534,4405.8,4405.7,0.40300725]
[1757063585703,2.57143534,4405.8,4405.7,0.11630725]
[1757063585905,5.57143534,4405.8,4405.7,0.11630725]
[1757063586106,5.38624259,4405.8,4405.7,0.40300725]
[1757063587403,9.19824259,4405.8,4405.7,0.40300725]
[1757063588001,9.19824259,4405.8,4405.7,0.49931128]
[1757063588203,9.49974259,4405.8,4405.7,0.21261128]
[1757063588407,10.39284259,4405.8,4405.7,0.21261128]
[1757063593590,2.26978686,4405.7,4405.6,0.004]
[1757063593792,5.38258686,4405.7,4405.6,0.21670141]
[1757063593997,6.15618686,4405.7,4405.6,0.21670141]
[1757063603929,6.63938686,4405.7,4405.6,0.21670141]
[1757063604430,6.15618686,4405.7,4405.6,0.21670141]
[1757063607128,0.1128,4405.7,4405.6,0.51550141]
[1757063607307,4.89978686,4405.7,4405.6,0.99409143]
[1757063608333,4.89978686,4405.7,4405.6,0.51549143]
[1757063610030,5.21048686,4405.7,4405.6,0.21669143]
[1757063610204,6.15658686,4405.7,4405.6,0.21669143]
[1757063610729,5.67338686,4405.7,4405.6,0.21669143]
[1757063611034,8.67338686,4405.7,4405.6,0.21669143]
[1757063611607,7.89978686,4405.7,4405.6,0.21669143]
[1757063612318,7.89898686,4405.7,4405.6,0.21669143]
[1757063612515,8.20968686,4405.7,4405.6,0.21669143]
[1757063612839,8.67258686,4405.7,4405.6,0.21669143]
[1757063616455,7.89898686,4405.7,4405.6,0.21675745]
[1757063616747,9.08078686,4405.7,4405.6,0.99415745]
[1757063617610,9.08078686,4405.7,4405.6,0.51555745]
[1757063617920,9.08078686,4405.7,4405.6,0.21675745]
[1757063618138,9.85438686,4405.7,4405.6,0.21675745]
[1757063618346,10.33758686,4405.7,4405.6,0.21675745]
[1757063620036,10.33758686,4405.7,4405.6,0.11675745]
[1757063621157,9.85438686,4405.7,4405.6,0.12075745]
[1757063621660,9.85538686,4405.7,4405.6,0.12075745]
[1757063623169,9.08178686,4405.7,4405.6,0.12075745]
[1757063625961,9.08178686,4405.7,4405.6,0.43385745]
[1757063626165,0.001,4405.7,4405.6,0.90065745]
[1757063626342,6.08078686,4405.7,4405.6,1.28825745]
[1757063626543,6.08078686,4405.7,4405.6,0.90065745]
[1757063629980,2.27078686,4405.7,4405.6,0.90065745]
[1757063633061,2.27078686,4405.7,4405.6,0.43385745]
[1757063633846,5.57468686,4405.7,4405.6,0.12075745]
[1757063634178,6.47898686,4405.7,4405.6,0.12075745]
[1757063634381,6.02458686,4405.7,4405.6,0.12075745]
[1757063634873,5.57468686,4405.7,4405.6,0.12075745]
[1757063640169,5.26998686,4405.7,4405.6,0.43385745]
[1757063640359,2.26998686,4405.7,4405.6,0.90065745]
[1757063640765,2.26998686,4405.7,4405.6,0.27385745]
[1757063642188,2.26988991,4405.5,4405.4,0.004]
[1757063642694,2.26988991,4405.5,4405.4,0.3171]
[1757063643898,2.26988991,4405.5,4405.4,0.004]
[1757063644966,3.02368991,4405.5,4405.4,0.004]
[1757063645297,3.809,4405.6,4405.4,0.004]
[1757063645458,6.0788766,4405.6,4405.4,0.3171]
[1757063645663,3.809,4405.6,4405.4,0.3171]
[1757063645864,3.809,4405.6,4405.4,0.7839]
[1757063646826,0.0002,4405.7,4405.6,2.26983838]
[1757063647165,0.0002,4405.7,4405.6,3.42073676]
[1757063647866,0.0002,4405.7,4405.6,3.39803838]
[1757063648085,0.0002,4405.7,4405.6,3.49403838]
[1757063649169,0.0002,4405.7,4405.6,3.14573838]
[1757063649369,0.0002,4405.7,4405.6,3.72339473]
[1757063650171,0.0002,4405.7,4405.6,7.53139473]
[1757063651996,0.0002,4405.7,4405.6,3.72339473]
[1757063652166,0.0002,4405.7,4405.6,7.53139473]
[1757063652594,0.0002,4405.7,4405.6,7.06459473]
[1757063652790,0.0002,4405.7,4405.6,7.27685107]
[1757063653272,0.0002,4405.7,4405.6,7.77005107]
[1757063653781,0.0002,4405.7,4405.6,8.11835107]
[1757063654867,0.0002,4405.7,4405.6,7.77005107]
[1757063655080,0.0002,4405.7,4405.6,8.11835107]
[1757063655878,0.0002,4405.7,4405.6,8.91035107]
[1757063656282,0.0002,4405.7,4405.6,8.91435107]
[1757063658803,0.0002,4405.7,4405.6,8.56605107]
[1757063659000,0.0002,4405.7,4405.6,8.91435107]
[1757063661802,0.0002,4405.7,4405.6,8.56605107]
[1757063662203,0.0002,4405.7,4405.6,8.56586942]
[1757063663394,0.0002,4405.7,4405.6,8.07266942]
[1757063664491,0.7547,4405.7,4405.6,7.75756942]
[1757063665001,3.47498686,4405.7,4405.6,0.21607469]
[1757063666499,1.2052,4405.7,4405.6,0.21607469]
[1757063667982,3.47418686,4405.7,4405.6,0.21607469]
[1757063668990,1.2044,4405.7,4405.6,0.21607469]
[1757063669412,3.47418686,4405.7,4405.6,0.21607469]
[1757063670492,6.47418686,4405.7,4405.6,0.21607469]
[1757063670814,10.28018686,4405.7,4405.6,0.004]
[1757063672931,10.28118686,4405.7,4405.6,0.004]
[1757063674817,11.95418686,4405.7,4405.6,0.004]
[1757063676035,12.31167117,4405.7,4405.6,1e-08]
[1757063677642,3.1128,4405.6,4405.3,1e-08]
[1757063677826,10.52875639,4405.4,4405.3,1e-08]
[1757063678169,15.0034407,4405.4,4405.3,1e-08]
[1757063678507,15.8972407,4405.4,4405.3,1e-08]
[1757063687119,5.74027727,4405.3,4405.2,1e-08]
[1757063687520,6.03627727,4405.3,4405.2,1e-08]
[1757063687820,7.06138782,4405.3,4405.2,1e-08]
[1757063690701,2.27019909,4404.9,4403.9,0.4987]
[1757063690837,7.74919909,4404.9,4403.9,0.4987]
[1757063691033,8.97929909,4404.9,4404.3,0.004]
[1757063691534,13.30187002,4404.9,4404.3,0.004]
[1757063692755,13.47063457,4404.9,4404.3,0.004]
[1757063694035,16.47063457,4404.9,4404.3,0.004]
[1757063695983,16.46983457,4404.9,4404.3,0.004]
[1757063699079,16.30107002,4404.9,4404.3,0.004]
[1757063701180,16.65855433,4404.9,4404.3,0.004]
[1757063701967,3.0,4404.8,4404.3,0.004]
[1757063702194,9.59302774,4404.4,4404.3,0.004]
[1757063702404,5.27045681,4404.4,4404.3,0.004]
[1757063702588,9.07545681,4404.4,4404.3,0.3032]
[1757063703483,9.07545681,4404.4,4404.3,0.004]
[1757063705082,9.07545681,4404.4,4404.3,0.3032]
[1757063710526,9.07545681,4404.4,4404.3,0.3116]
[1757063713226,9.07545681,4404.4,4404.3,0.004]
[1757063715664,10.32995681,4404.4,4404.3,0.004]
[1757063718971,14.65252774,4404.4,4404.3,1e-08]
[1757063719171,14.65252774,4404.4,4403.8,0.029]
[1757063719172,2.27055992,4404.2,4403.8,0.029]
[1757063719373,2.27066303,4404.0,4403.8,0.029]
[1757063719541,4.1119,4403.9,4403.8,0.029]
[1757063719878,2.27071459,4403.9,4403.8,0.029]
[1757063720077,9.07471459,4403.9,4403.8,1.00137452]
[1757063720747,9.07471459,4403.9,4403.8,1.35027452]
[1757063721175,9.07471459,4403.9,4403.8,1.00137452]
[1757063721357,9.07471459,4403.9,4403.8,0.54947452]
[1757063722169,9.07471459,4403.9,4403.8,1.00137452]
[1757063723249,9.07471459,4403.9,4403.8,0.54947452]
[1757063723649,9.07391459,4403.9,4403.8,0.54947452]
[1757063724372,9.07391459,4403.9,4403.8,0.24187452]
[1757063724549,10.32841459,4403.9,4403.8,0.24187452]
[1757063724958,9.84161459,4403.9,4403.8,0.24187452]
[1757063725983,9.07391459,4403.9,4403.8,0.24187452]
[1757063728392,9.53371459,4403.9,4403.8,0.24187452]
[1757063729360,9.84161459,4403.9,4403.8,0.24187452]
[1757063730291,9.38181459,4403.9,4403.8,0.24187452]
[1757063730593,10.32841459,4403.9,4403.8,0.24187452]
[1757063731879,10.32841459,4403.9,4403.8,0.029]
[1757063734695,9.84161459,4403.9,4403.8,0.029]
[1757063735560,9.07391459,4403.9,4403.8,0.3366]
[1757063735768,9.07391459,4403.9,4403.8,0.54941848]
[1757063739300,9.07391459,4403.9,4403.8,0.24181848]
[1757063742502,9.07391459,4403.9,4403.8,0.24187362]
[1757063742881,9.07491459,4403.9,4403.8,0.24187362]
[1757063743082,9.07491459,4403.9,4403.8,0.54237362]
[1757063743282,9.07491459,4403.9,4403.8,0.44237362]
[1757063744771,9.07491459,4403.9,4403.8,0.14187362]
[1757063745792,9.51951459,4403.9,4403.8,0.14187362]
[1757063746002,2.27092085,4403.5,4403.4,0.4559]
[1757063746175,6.07392085,4403.5,4403.4,0.004]
[1757063746506,6.07392085,4403.5,4403.4,0.3045]
[1757063746706,6.07392085,4403.5,4403.4,0.8043]
[1757063746707,6.42282085,4403.5,4403.4,0.8043]
[1757063751582,6.42202085,4403.5,4403.4,0.8043]
[1757063752408,6.42202085,4403.5,4403.4,0.3045]
[1757063755229,6.42202085,4403.5,4403.4,0.51749963]
[1757063755595,6.42202085,4403.5,4403.4,0.21699963]
[1757063755801,7.17492085,4403.5,4403.4,0.21699963]
[1757063756002,7.65112085,4403.5,4403.4,0.21699963]
[1757063756533,7.65112085,4403.5,4403.4,0.51749963]
[1757063756534,6.42202085,4403.5,4403.4,0.51749963]
[1757063757301,6.42202085,4403.5,4403.4,0.21699963]
[1757063757929,6.86662085,4403.5,4403.4,0.21699963]
[1757063758124,7.17492085,4403.5,4403.4,0.21699963]
[1757063760442,6.42202085,4403.5,4403.4,0.21699963]
[1757063760902,6.86662085,4403.5,4403.4,0.21699963]
[1757063763641,7.17492085,4403.5,4403.4,0.21699963]
[1757063764422,7.65112085,4403.5,4403.4,0.21699963]
[1757063769838,7.65112085,4403.5,4403.4,0.21712411]
[1757063773232,10.65112085,4403.5,4403.4,0.21712411]
[1757063774948,10.65112085,4403.5,4403.4,0.2171021]
[1757063775151,10.65112085,4403.5,4402.9,0.004]
[1757063775152,2.271024,4403.3,4402.9,0.004]
[1757063775363,2.27117874,4403.0,4402.9,0.004]
[1757063775571,9.35727874,4403.0,4402.9,0.004]
[1757063775732,5.99367874,4403.0,4402.9,0.004]
[1757063775935,10.38287874,4403.0,4402.9,0.004]
[1757063778863,9.94647874,4403.0,4402.9,0.004]
[1757063779164,10.86467874,4403.0,4402.9,0.004]
[1757063779563,10.86387874,4403.0,4402.9,0.004]
[1757063779735,11.19844521,4403.0,4402.9,0.004]
[1757063781738,5.27123032,4402.9,4402.8,1e-08]
[1757063781939,6.39779679,4402.9,4402.8,1e-08]
[1757063782243,9.27609679,4402.9,4402.8,1e-08]
[1757063783366,8.48409679,4402.9,4402.8,1e-08]
[1757063784676,2.27143668,4402.5,4402.4,1e-08]
[1757063784835,9.40600315,4402.5,4402.4,1e-08]
[1757063785042,10.61030315,4402.5,4402.4,1e-08]
[1757063785343,10.27033668,4402.5,4402.4,1e-08]
[1757063786272,10.75213668,4402.5,4402.4,1e-08]
[1757063787834,10.92312526,4402.5,4402.4,1e-08]
[1757063788681,10.44132526,4402.5,4402.4,1e-08]
[1757063789055,9.71882526,4402.5,4402.4,1e-08]
[1757063789287,9.71882526,4402.5,4402.4,0.30290001]
[1757063790294,9.54783668,4402.5,4402.4,0.30290001]
[1757063790590,9.54783668,4402.5,4402.4,0.77930001]
[1757063791097,9.54783668,4402.5,4402.4,0.30290001]
[1757063792997,10.27033668,4402.5,4402.4,1e-08]
[1757063793157,10.75213668,4402.5,4402.4,1e-08]
[1757063795799,9.54783668,4402.5,4402.4,0.30290001]
[1757063795968,10.27033668,4402.5,4402.4,1e-08]
[1757063796771,10.75213668,4402.5,4402.4,1e-08]
[1757063802210,11.08670315,4402.5,4402.4,1e-08]
[1757063803521,10.60490315,4402.5,4402.4,1e-08]
[1757063803684,9.54783668,4402.5,4402.4,1e-08]
[1757063805127,9.98973668,4402.5,4402.4,1e-08]
[1757063805697,10.27743668,4402.5,4402.4,1e-08]
[1757063805924,10.73123668,4402.5,4402.4,1e-08]
[1757063806123,11.06580315,4402.5,4402.4,1e-08]
[1757063807128,10.73123668,4402.5,4402.4,1e-08]
[1757063807307,10.73043668,4402.5,4402.4,1e-08]
[1757063808121,11.06500315,4402.5,4402.4,1e-08]
[1757063808319,11.85700315,4402.5,4402.4,1e-08]
[1757063808932,11.06500315,4402.5,4402.4,1e-08]
[1757063810934,11.06500315,4402.5,4402.4,1e-08]
[1757063817302,11.06600315,4402.5,4402.4,1e-08]
[1757063818329,9.88260315,4402.5,4402.4,1e-08]
[1757063818534,9.54803668,4402.5,4402.4,1e-08]
[1757063818740,9.98993668,4402.5,4402.4,1e-08]
[1757063818942,10.27763668,4402.5,4402.4,1e-08]
[1757063820141,10.73143668,4402.5,4402.4,1e-08]
[1757063821653,3.0,4402.4,4401.8,0.025]
[1757063821821,2.27164307,4402.1,4401.8,0.025]
[1757063822021,5.27174629,4401.9,4401.8,0.025]
[1757063823960,2.27226249,4400.9,4400.2,0.4934]
[1757063824112,10.74526249,4400.9,4400.2,0.4934]
[1757063824319,2.27257232,4400.3,4400.2,0.4934]
[1757063824558,9.07257232,4400.3,4400.2,0.4934]
[1757063824715,2.27277892,4399.9,4399.8,0.3739]
[1757063824915,6.07377892,4399.9,4399.8,0.3739]
[1757063825116,6.07377892,4399.9,4399.8,0.6868]
[1757063825317,6.07377892,4399.9,4399.8,1.1802]
[1757063828673,6.07377892,4399.9,4399.8,0.8313]
[1757063831345,9.07377892,4399.9,4399.8,0.3379]
[1757063832146,9.07377892,4399.9,4399.8,0.8007]
[1757063832547,9.07377892,4399.9,4399.8,0.3379]
[1757063833762,9.07377892,4399.9,4399.8,0.025]
[1757063835064,9.07297892,4399.9,4399.8,0.025]
[1757063835474,9.37567892,4399.9,4399.8,0.025]
[1757063835682,9.84707892,4399.9,4399.8,0.025]
[1757063836780,9.54437892,4399.9,4399.8,0.025]
[1757063836979,9.54437892,4399.9,4399.8,0.029]
[1757063837276,9.07297892,4399.9,4399.8,0.029]
[1757063837851,9.84707892,4399.9,4399.8,0.029]
[1757063839279,9.07297892,4399.9,4399.8,0.029]
[1757063839651,9.07297892,4399.9,4399.8,0.7963]
[1757063840254,9.07297892,4399.9,4399.8,0.3335]
[1757063841083,9.07297892,4399.9,4399.8,0.029]
[1757063841885,9.84707892,4399.9,4399.8,0.029]
[1757063842790,10.33497892,4399.9,4399.8,0.029]
[1757063844399,9.84707892,4399.9,4399.8,0.029]
[1757063845200,10.33497892,4399.9,4399.8,0.029]
[1757063852516,9.84707892,4399.9,4399.8,0.029]
[1757063854913,10.33497892,4399.9,4399.8,0.029]
[1757063855514,10.33597892,4399.9,4399.8,0.029]
[1757063858638,9.07397892,4399.9,4399.8,0.029]
[1757063859336,10.28797892,4399.9,4399.8,0.029]
[1757063862929,10.28717892,4399.9,4399.8,0.029]
[1757063867346,9.80627892,4399.9,4399.8,0.029]
[1757063867563,11.39229664,4399.9,4399.8,1e-08]
[1757063868075,16.62829664,4399.9,4399.8,1e-08]
[1757063869475,2.2738125,4397.9,4397.3,0.3489]
[1757063869633,2.2738125,4397.9,4397.5,0.4544]
[1757063869634,9.0748125,4397.9,4397.5,0.4544]
[1757063869833,9.0748125,4397.9,4397.8,0.3188]
[1757063870662,9.24674826,4397.9,4397.8,0.3188]
[1757063870845,9.24674826,4397.9,4397.8,0.7732]
[1757063871372,9.0748125,4397.9,4397.8,0.7732]
[1757063874054,5.2738125,4397.9,4397.8,0.7732]
[1757063874263,9.0748125,4397.9,4397.8,1.1221]
[1757063875039,9.0748125,4397.9,4397.8,1.1261]
[1757063875568,9.0748125,4397.9,4397.8,0.7772]
[1757063875977,9.0748125,4397.9,4397.8,0.029]
[1757063876280,9.8471125,4397.9,4397.8,0.029]
[1757063876571,10.2888125,4397.9,4397.8,0.029]
[1757063876771,9.0748125,4397.9,4397.8,0.029]
[1757063877073,9.0748125,4397.9,4397.8,0.3228]
[1757063877574,9.0748125,4397.9,4397.8,0.029]
[1757063878170,9.8079125,4397.9,4397.8,0.029]
[1757063878781,9.3662125,4397.9,4397.8,0.029]
[1757063879141,9.0748125,4397.9,4397.8,0.029]
[1757063880255,9.0748125,4397.9,4397.8,0.3228]
[1757063880562,9.0748125,4397.9,4397.8,0.7772]
[1757063880953,9.0748125,4397.9,4397.8,0.3228]
[1757063882140,9.0748125,4397.9,4397.8,0.029]
[1757063883876,9.3662125,4397.9,4397.8,0.029]
[1757063884243,9.8079125,4397.9,4397.8,0.029]
[1757063885278,10.2888125,4397.9,4397.8,0.029]
[1757063885950,10.2888125,4397.9,4397.3,0.004]
[1757063885951,3.0,4397.8,4397.3,0.004]
[1757063886157,2.27407104,4397.4,4397.3,0.004]
[1757063886360,2.27432964,4396.9,4396.8,0.025]
[1757063886572,10.75232964,4396.9,4396.8,0.025]
[1757063886742,11.96632964,4396.9,4396.8,0.025]
[1757063890677,11.96552964,4396.9,4396.8,0.025]
[1757063895277,12.27864736,4396.9,4396.8,0.025]
[1757063895477,13.07064736,4396.9,4396.8,0.025]
[1757063895683,2.27484701,4395.9,4395.8,0.025]
[1757063895911,6.07684701,4395.9,4395.8,0.025]
[1757063896083,6.07684701,4395.9,4395.8,0.325]
[1757063897185,6.36244701,4395.9,4395.8,0.025]
[1757063897617,5.27489982,4395.8,4394.8,0.5019]
[1757063897915,3.0,4395.5,4394.8,0.025]
[1757063898111,2.27536462,4394.9,4394.8,0.025]
[1757063898310,6.08336462,4394.9,4394.8,0.025]
[1757063899693,6.36896462,4394.9,4394.8,0.025]
[1757063899893,6.83446462,4394.9,4394.8,0.025]
[1757063900196,11.11776462,4394.9,4394.8,0.025]
[1757063903114,9.83846462,4394.9,4394.8,0.025]
[1757063903314,9.83846462,4394.9,4393.4,0.003]
[1757063903315,2.27608967,4393.5,4393.4,0.003]
[1757063903516,7.81408967,4393.5,4393.4,0.003]
[1757063903720,10.81408967,4393.5,4393.4,0.303]
[1757063905427,11.09968967,4393.5,4393.4,0.003]
[1757063905629,11.56518967,4393.5,4393.4,0.003]
[1757063906038,12.05648967,4393.5,4393.4,0.003]
[1757063906395,12.84848967,4393.5,4393.4,0.003]
[1757063907211,0.792,4393.3,4392.5,0.003]
[1757063907426,2.27640055,4392.9,4392.5,0.003]
[1757063907640,9.42900055,4392.9,4392.5,0.003]
[1757063907941,10.38580055,4392.9,4392.5,0.003]
[1757063908495,5.56200055,4392.9,4392.5,0.003]
[1757063908695,5.27640055,4392.9,4392.8,0.8049]
[1757063908901,9.14440055,4392.9,4392.8,1.1788]
[1757063909096,9.14440055,4392.9,4392.8,0.8049]
[1757063909300,9.14440055,4392.9,4392.8,0.328]
[1757063911240,9.14440055,4392.9,4392.8,0.028]
[1757063911444,9.89550055,4392.9,4392.8,0.028]
[1757063912223,6.02750055,4392.9,4392.8,0.028]
[1757063912551,9.89850055,4392.9,4392.8,0.028]
[1757063912917,9.14740055,4392.9,4392.8,0.028]
[1757063913151,9.89850055,4392.9,4392.8,0.028]
[1757063913305,3.0,4392.9,4392.8,0.8049]
[1757063913622,6.14740055,4392.9,4392.8,1.1788]
[1757063913826,6.14740055,4392.9,4392.8,0.8049]
[1757063914340,6.14740055,4392.9,4392.8,0.328]
[1757063914838,9.14740055,4392.9,4392.8,0.028]
[1757063915034,9.43300055,4392.9,4392.8,0.028]
[1757063915202,9.89850055,4392.9,4392.8,0.028]
[1757063916337,9.43300055,4392.9,4392.8,0.028]
[1757063916507,9.14740055,4392.9,4392.8,0.028]
[1757063916944,9.14740055,4392.9,4392.8,0.328]
[1757063917620,9.14740055,4392.9,4392.8,0.028]
[1757063917821,9.14740055,4392.9,4392.8,0.328]
[1757063918022,9.15940055,4392.9,4392.8,0.6584441]